lending/lending_fUSD_20240731
["ID","MTS","AMOUNT","RATE_DAILY","PERIOD"]
[333708473,1722393033489,-1944.42348306,0.00010114,2]
[333708474,1722393033499,-1944.42348306,0.00010186,2]
[333708475,1722393033508,-335.45,0.00010192,2]
[333708476,1722393033518,-425.8,0.00010192,2]
[333708477,1722393033528,-533.86,0.00010192,2]
[333708478,1722393033537,-150.0,0.00010192,2]
[333708479,1722393033547,-425.8,0.00010192,2]
[333708480,1722393033556,-150.0,0.00010192,2]
[333708481,1722393033566,-150.0,0.00010192,2]
[333708482,1722393033576,-150.0,0.00010192,2]
[333708483,1722393033585,-714.07,0.00010192,2]
[333708484,1722393033595,-150.0,0.00010192,2]
[333708485,1722393033605,-150.0,0.00010192,2]
[333708486,1722393033615,-150.0,0.00010192,2]
[333708487,1722393033626,-150.0,0.00010192,2]
[333708488,1722393033637,-150.0,0.00010192,2]
[333708489,1722393033647,-425.8,0.00010192,2]
[333708490,1722393033657,-150.0,0.00010192,2]
[333708491,1722393033667,-150.0,0.00010192,2]
[333708492,1722393033677,-150.0,0.00010192,2]
[333708493,1722393033687,-425.8,0.00010192,2]
[333708494,1722393033697,-150.0,0.00010192,2]
[333708495,1722393033707,-150.0,0.00010192,2]
[333708496,1722393033716,-150.0,0.00010192,2]
[333708497,1722393033725,-150.0,0.00010192,2]
[333708498,1722393033735,-150.0,0.00010192,2]
[333708499,1722393033745,-150.0,0.00010192,2]
[333708500,1722393033755,-425.8,0.00010192,2]
[333708501,1722393033764,-150.0,0.00010192,2]
[333708502,1722393033774,-150.0,0.00010192,2]
[333708503,1722393033784,-150.0,0.00010192,2]
[333708504,1722393033793,-150.0,0.00010192,2]
[333708505,1722393033803,-425.8,0.00010192,2]
[333708506,1722393033813,-150.0,0.00010192,2]
[333708507,1722393033824,-151.15,0.00010192,2]
[333708508,1722393033834,-425.8,0.00010192,2]
[333708509,1722393033843,-193.47,0.00010192,2]
[333708510,1722393033853,-238.42,0.00010192,2]
[333708511,1722393033863,-425.16,0.00010192,2]
[333708512,1722393033874,-1600.0,0.000102,3]
[333708513,1722393033884,-1944.42348306,0.00010257,2]
[333708514,1722393033894,-2000.0,0.000103,3]
[333708515,1722393033904,-1944.42348306,0.00010329,2]
[333708516,1722393033914,-379.70385757,0.0001037,2]
[333708517,1722393033926,-150.0,0.00010378,2]
[333708518,1722393033936,-150.0,0.00010378,2]
[333708519,1722393033945,-150.0,0.00010378,2]
[333708520,1722393033955,-410.95238035,0.00010389,2]
[333708521,1722393033964,-222.3429,0.000104,2]
[333708522,1722393033974,-295.8728,0.000104,2]
[333708523,1722393033983,-400.0,0.000104,3]
[333708524,1722393033993,-1944.42348306,0.000104,2]
[333708525,1722393034002,-7558.435157,0.000104,2]
[333708526,1722393034011,-7558.435157,0.000104,2]
[333708527,1722393034021,-5257.549987,0.00010418,2]
[333708528,1722393034037,-151.0,0.00010418,2]
[333708529,1722393034046,-151.0,0.00010418,2]
[333708530,1722393034056,-3737.412592,0.00010418,2]
[333708531,1722393034065,-3003.865646,0.00010418,2]
[333708532,1722393034075,-3737.412592,0.00010418,2]
[333708533,1722393034085,-3003.865646,0.00010418,2]
[333708534,1722393034095,-151.0,0.00010418,2]
[333708535,1722393034104,-151.0,0.00010418,2]
[333708536,1722393034113,-232.48805,0.00010418,2]
[333708537,1722393034123,-232.48805,0.00010418,2]
[333708538,1722393034133,-245.935215,0.00010418,2]
[333708539,1722393034143,-151.0,0.00010418,2]
[333708540,1722393034152,-953.864396,0.00010418,2]
[333708541,1722393034161,-953.864396,0.00010418,2]
[333708542,1722393034172,-274.84132,0.00010418,2]
[333708543,1722393034181,-274.84132,0.00010418,2]
[333708544,1722393034192,-506.836434,0.00010418,2]
[333708545,1722393034202,-506.836434,0.00010418,2]
[333708546,1722393034212,-292.789805,0.00010418,2]
[333708547,1722393034223,-151.0,0.00010418,2]
[333708548,1722393034233,-292.789805,0.00010418,2]
[333708549,1722393034243,-151.0,0.00010418,2]
[333708550,1722393034253,-151.0,0.00010418,2]
[333708551,1722393034263,-151.0,0.00010418,2]
[333708552,1722393034274,-151.0,0.00010418,2]
[333708553,1722393034284,-151.0,0.00010418,2]
[333708554,1722393034294,-151.0,0.00010418,2]
[333708555,1722393034303,-151.0,0.00010418,2]
[333708556,1722393034313,-177.649785,0.00010418,2]
[333708557,1722393034323,-5824.533365,0.00010418,2]
[333708558,1722393034332,-490.15,0.00010418,2]
[333708559,1722393034341,-151.0,0.00010418,2]
[333708560,1722393034351,-177.649785,0.00010418,2]
[333708561,1722393034360,-5824.533365,0.00010418,2]
[333708562,1722393034370,-490.15,0.00010418,2]
[333708563,1722393034379,-151.0,0.00010418,2]
[333708564,1722393034389,-178.127991,0.00010418,2]
[333708565,1722393034520,-178.127991,0.00010418,2]
[333708566,1722393034530,-241.717227,0.00010418,2]
[333708567,1722393034541,-241.717227,0.00010418,2]
[333708568,1722393034551,-198.239982,0.00010418,2]
[333708569,1722393034560,-198.239982,0.00010418,2]
[333708570,1722393034570,-478.889365,0.00010418,2]
[333708571,1722393034579,-1141.751201,0.00010418,2]
[333708572,1722393034589,-151.0,0.00010418,2]
[333708573,1722393034599,-1141.751201,0.00010418,2]
[333708574,1722393034609,-478.889365,0.00010418,2]
[333708575,1722393034618,-181.468776,0.00010418,2]
[333708576,1722393034627,-181.468776,0.00010418,2]
[333708577,1722393034638,-181.468776,0.00010418,2]
[333708578,1722393034648,-181.468776,0.00010418,2]
[333708579,1722393034657,-3212.938029,0.00010418,2]
[333708580,1722393034668,-3212.938029,0.00010418,2]
[333708581,1722393034679,-1025.378692,0.00010418,2]
[333708582,1722393034689,-3212.938029,0.00010418,2]
[333708583,1722393034699,-3212.938029,0.00010418,2]
[333708584,1722393034709,-1025.378692,0.00010418,2]
[333708585,1722393034719,-151.0,0.00010418,2]
[333708586,1722393034728,-151.0,0.00010418,2]
[333708587,1722393034738,-1922.944376,0.00010418,2]
[333708588,1722393034748,-1922.944376,0.00010418,2]
[333708589,1722393034757,-1922.944376,0.00010418,2]
[333708590,1722393034767,-1922.944376,0.00010418,2]
[333708591,1722393034776,-3778.848857,0.00010418,2]
[333708592,1722393034786,-3778.848857,0.00010418,2]
[333708593,1722393034796,-3778.848857,0.00010418,2]
[333708594,1722393034806,-3778.848857,0.00010418,2]
[333708595,1722393034815,-151.0,0.00010418,2]
[333708596,1722393034825,-151.0,0.00010418,2]
[333708597,1722393034835,-151.0,0.00010418,2]
[333708598,1722393034844,-151.0,0.00010418,2]
[333708599,1722393034853,-4020.570193,0.00010418,2]
[333708600,1722393034863,-4020.570193,0.00010418,2]
[333708601,1722393034872,-4020.570193,0.00010418,2]
[333708602,1722393034882,-4020.570193,0.00010418,2]
[333708603,1722393034892,-352.497393,0.00010418,2]
[333708604,1722393034901,-352.497393,0.00010418,2]
[333708605,1722393034910,-1299.270516,0.00010418,2]
[333708606,1722393034920,-1299.270516,0.00010418,2]
[333708607,1722393034932,-352.497393,0.00010418,2]
[333708608,1722393034941,-352.497393,0.00010418,2]
[333708609,1722393034951,-1299.270516,0.00010418,2]
[333708610,1722393034960,-1299.270516,0.00010418,2]
[333708611,1722393034969,-151.0,0.00010418,2]
[333708612,1722393034978,-151.0,0.00010418,2]
[333708613,1722393034988,-151.0,0.00010418,2]
[333708614,1722393034997,-151.0,0.00010418,2]
[333708615,1722393035007,-164.504088,0.00010418,2]
[333708616,1722393035017,-164.504088,0.00010418,2]
[333708617,1722393035028,-164.504088,0.00010418,2]
[333708618,1722393035038,-164.504088,0.00010418,2]
[333708619,1722393035047,-156.795283,0.00010418,2]
[333708620,1722393035057,-7558.435157,0.00010418,2]
[333708621,1722393035067,-7558.435157,0.00010418,2]
[333708622,1722393035078,-7558.435157,0.00010418,2]
[333708623,1722393035087,-7558.435157,0.00010418,2]
[333708624,1722393035097,-6889.88755283,0.00010418,2]
[333708625,1722393035107,-281.62,0.00010437,2]
[333708626,1722393035116,-379.70385757,0.00010441,2]
[333708627,1722393035125,-40694.97248694,0.0001047,2]
[333708628,1722393035136,-3737.412592,0.0001047,2]
[333708629,1722393035146,-3003.865646,0.0001047,2]
[333708630,1722393035155,-3737.412592,0.0001047,2]
[333708631,1722393035164,-3003.865646,0.0001047,2]
[333708632,1722393035175,-151.0,0.0001047,2]
[333708633,1722393035185,-151.0,0.0001047,2]
[333708634,1722393035195,-151.0,0.0001047,2]
[333708635,1722393035204,-953.864396,0.0001047,2]
[333708636,1722393035214,-953.864396,0.0001047,2]
[333708637,1722393035224,-506.836434,0.0001047,2]
[333708638,1722393035233,-506.836434,0.0001047,2]
[333708639,1722393035242,-292.789805,0.0001047,2]
[333708640,1722393035254,-151.0,0.0001047,2]
[333708641,1722393035273,-292.789805,0.0001047,2]
[333708642,1722393035289,-151.0,0.0001047,2]
[333708643,1722393035307,-234.671909,0.0001047,2]
[333708644,1722393035325,-151.0,0.0001047,2]
[333708645,1722393035342,-151.0,0.0001047,2]
[333708646,1722393035358,-151.0,0.0001047,2]
[333708647,1722393035375,-151.0,0.0001047,2]
[333708648,1722393035388,-151.0,0.0001047,2]
[333708649,1722393035405,-177.649785,0.0001047,2]
[333708650,1722393035423,-5824.533365,0.0001047,2]
[333708651,1722393035440,-490.15,0.0001047,2]
[333708652,1722393035452,-151.0,0.0001047,2]
[333708653,1722393035471,-177.649785,0.0001047,2]
[333708654,1722393035485,-490.15,0.0001047,2]
[333708655,1722393035502,-151.0,0.0001047,2]
[333708656,1722393035514,-5824.533365,0.0001047,2]
[333708657,1722393035529,-178.127991,0.0001047,2]
[333708658,1722393035544,-178.127991,0.0001047,2]
[333708659,1722393035562,-241.717227,0.0001047,2]
[333708660,1722393035577,-241.717227,0.0001047,2]
[333708661,1722393035590,-198.239982,0.0001047,2]
[333708662,1722393035605,-198.239982,0.0001047,2]
[333708663,1722393035619,-478.889365,0.0001047,2]
[333708664,1722393035634,-1141.751201,0.0001047,2]
[333708665,1722393035648,-151.0,0.0001047,2]
[333708666,1722393035663,-1141.751201,0.0001047,2]
[333708667,1722393035678,-478.889365,0.0001047,2]
[333708668,1722393035692,-181.468776,0.0001047,2]
[333708669,1722393035707,-181.468776,0.0001047,2]
[333708670,1722393035722,-181.468776,0.0001047,2]
[333708671,1722393035737,-181.468776,0.0001047,2]
[333708672,1722393035752,-3212.938029,0.0001047,2]
[333708673,1722393035766,-3212.938029,0.0001047,2]
[333708674,1722393035781,-1025.378692,0.0001047,2]
[333708675,1722393035796,-3212.938029,0.0001047,2]
[333708676,1722393035811,-3212.938029,0.0001047,2]
[333708677,1722393035825,-1025.378692,0.0001047,2]
[333708678,1722393035839,-151.0,0.0001047,2]
[333708679,1722393035854,-151.0,0.0001047,2]
[333708680,1722393035869,-1922.944376,0.0001047,2]
[333708681,1722393035884,-1922.944376,0.0001047,2]
[333708682,1722393035898,-1922.944376,0.0001047,2]
[333708683,1722393035912,-1922.944376,0.0001047,2]
[333708684,1722393035929,-3778.848857,0.0001047,2]
[333708685,1722393035943,-3778.848857,0.0001047,2]
[333708686,1722393035958,-3778.848857,0.0001047,2]
[333708687,1722393035974,-3778.848857,0.0001047,2]
[333708688,1722393035987,-151.0,0.0001047,2]
[333708689,1722393036002,-151.0,0.0001047,2]
[333708690,1722393036016,-151.0,0.0001047,2]
[333708691,1722393036033,-151.0,0.0001047,2]
[333708692,1722393036047,-4020.570193,0.0001047,2]
[333708693,1722393036062,-4020.570193,0.0001047,2]
[333708694,1722393036078,-4020.570193,0.0001047,2]
[333708695,1722393036092,-4020.570193,0.0001047,2]
[333708696,1722393036107,-352.497393,0.0001047,2]
[333708697,1722393036124,-352.497393,0.0001047,2]
[333708698,1722393036139,-1299.270516,0.0001047,2]
[333708699,1722393036154,-1299.270516,0.0001047,2]
[333708700,1722393036170,-352.497393,0.0001047,2]
[333708701,1722393036186,-352.497393,0.0001047,2]
[333708702,1722393036200,-1299.270516,0.0001047,2]
[333708703,1722393036215,-1299.270516,0.0001047,2]
[333708704,1722393036231,-151.0,0.0001047,2]
[333708705,1722393036245,-151.0,0.0001047,2]
[333708706,1722393036260,-151.0,0.0001047,2]
[333708707,1722393036275,-151.0,0.0001047,2]
[333708708,1722393036290,-164.504088,0.0001047,2]
[333708709,1722393036306,-164.504088,0.0001047,2]
[333708710,1722393036320,-164.504088,0.0001047,2]
[333708711,1722393036335,-164.504088,0.0001047,2]
[333708712,1722393036351,-7558.435157,0.0001047,2]
[333708713,1722393036366,-7558.435157,0.0001047,2]
[333708714,1722393036381,-1944.42348306,0.00010471,2]
[333708715,1722393036549,-12808.15443299,0.000105,2]
[333708716,1722393036561,-790.231412,0.000105,2]
[333708717,1722393036571,-790.231412,0.000105,2]
[333708718,1722393036580,-151.0,0.000105,2]
[333708719,1722393036590,-938.251831,0.000105,2]
[333708720,1722393036599,-938.251831,0.000105,2]
[333708721,1722393036609,-168.615289,0.000105,2]
[333708722,1722393036618,-158.970331,0.000105,2]
[333708723,1722393036627,-158.970331,0.000105,2]
[333708724,1722393036637,-754.30401,0.000105,2]
[333708725,1722393036646,-754.30401,0.000105,2]
[333708726,1722393036656,-568.897803,0.000105,2]
[333708727,1722393036666,-568.897803,0.000105,2]
[333708728,1722393036680,-151.0,0.000105,2]
[333708729,1722393036691,-162.305145,0.000105,2]
[333708730,1722393036700,-162.305145,0.000105,2]
[333708731,1722393036710,-328.176749,0.000105,2]
[333708732,1722393036719,-328.176749,0.000105,2]
[333708733,1722393036729,-151.0,0.000105,2]
[333708734,1722393036739,-151.0,0.000105,2]
[333708735,1722393036748,-2390.261847,0.000105,2]
[333708736,1722393036757,-714.037994,0.000105,2]
[333708737,1722393036767,-2390.261847,0.000105,2]
[333708738,1722393036776,-714.037994,0.000105,2]
[333708739,1722393036785,-434.867465,0.000105,2]
[333708740,1722393036795,-556.478555,0.000105,2]
[333708741,1722393036804,-434.867465,0.000105,2]
[333708742,1722393036814,-556.478555,0.000105,2]
[333708743,1722393036823,-811.387298,0.000105,2]
[333708744,1722393036832,-151.0,0.000105,2]
[333708745,1722393036842,-478.800673,0.000105,2]
[333708746,1722393036851,-811.387298,0.000105,2]
[333708747,1722393036860,-151.0,0.000105,2]
[333708748,1722393036869,-478.800673,0.000105,2]
[333708749,1722393036879,-2740.054842,0.000105,2]
[333708750,1722393036888,-2740.054842,0.000105,2]
[333708751,1722393036898,-5257.549987,0.000105,2]
[333708752,1722393036908,-151.0,0.000105,2]
[333708753,1722393036918,-631.46375,0.000105,2]
[333708754,1722393036932,-631.46375,0.000105,2]
[333708755,1722393036942,-151.0,0.000105,2]
[333708756,1722393036954,-151.0,0.000105,2]
[333708757,1722393036964,-3737.412592,0.000105,2]
[333708758,1722393036973,-3737.412592,0.000105,2]
[333708759,1722393036983,-3003.865646,0.000105,2]
[333708760,1722393036992,-3003.865646,0.000105,2]
[333708761,1722393037002,-3737.412592,0.000105,2]
[333708762,1722393037011,-3737.412592,0.000105,2]
[333708763,1722393037020,-3003.865646,0.000105,2]
[333708764,1722393037033,-3003.865646,0.000105,2]
[333708765,1722393037044,-151.0,0.000105,2]
[333708766,1722393037056,-151.0,0.000105,2]
[333708767,1722393037065,-151.0,0.000105,2]
[333708768,1722393037076,-153.208448,0.000105,2]
[333708769,1722393037085,-232.48805,0.000105,2]
[333708770,1722393037094,-160.407899,0.000105,2]
[333708771,1722393037106,-232.48805,0.000105,2]
[333708772,1722393037115,-151.0,0.000105,2]
[333708773,1722393037125,-151.0,0.000105,2]
[333708774,1722393037135,-151.0,0.000105,2]
[333708775,1722393037144,-151.0,0.000105,2]
[333708776,1722393037155,-953.864396,0.000105,2]
[333708777,1722393037165,-953.864396,0.000105,2]
[333708778,1722393037178,-953.864396,0.000105,2]
[333708779,1722393037187,-953.864396,0.000105,2]
[333708780,1722393037196,-953.864396,0.000105,2]
[333708781,1722393037206,-953.864396,0.000105,2]
[333708782,1722393037215,-274.84132,0.000105,2]
[333708783,1722393037225,-274.84132,0.000105,2]
[333708784,1722393037235,-506.836434,0.000105,2]
[333708785,1722393037246,-506.836434,0.000105,2]
[333708786,1722393037255,-506.836434,0.000105,2]
[333708787,1722393037267,-506.836434,0.000105,2]
[333708788,1722393037276,-506.836434,0.000105,2]
[333708789,1722393037286,-506.836434,0.000105,2]
[333708790,1722393037295,-292.789805,0.000105,2]
[333708791,1722393037306,-292.789805,0.000105,2]
[333708792,1722393037316,-292.789805,0.000105,2]
[333708793,1722393037326,-151.0,0.000105,2]
[333708794,1722393037336,-151.0,0.000105,2]
[333708795,1722393037346,-151.0,0.000105,2]
[333708796,1722393037357,-292.789805,0.000105,2]
[333708797,1722393037367,-292.789805,0.000105,2]
[333708798,1722393037377,-292.789805,0.000105,2]
[333708799,1722393037386,-151.0,0.000105,2]
[333708800,1722393037395,-151.0,0.000105,2]
[333708801,1722393037405,-151.0,0.000105,2]
[333708802,1722393037414,-151.0,0.000105,2]
[333708803,1722393037427,-151.0,0.000105,2]
[333708804,1722393037437,-277.407628,0.000105,2]
[333708805,1722393037446,-151.0,0.000105,2]
[333708806,1722393037455,-151.0,0.000105,2]
[333708807,1722393037464,-151.0,0.000105,2]
[333708808,1722393037474,-151.0,0.000105,2]
[333708809,1722393037483,-151.0,0.000105,2]
[333708810,1722393037492,-151.0,0.000105,2]
[333708811,1722393037501,-151.0,0.000105,2]
[333708812,1722393037510,-151.0,0.000105,2]
[333708813,1722393037519,-151.0,0.000105,2]
[333708814,1722393037529,-151.0,0.000105,2]
[333708815,1722393037538,-151.0,0.000105,2]
[333708816,1722393037547,-151.0,0.000105,2]
[333708817,1722393037556,-151.0,0.000105,2]
[333708818,1722393037565,-151.0,0.000105,2]
[333708819,1722393037574,-180.0658,0.000105,2]
[333708820,1722393037583,-151.0,0.000105,2]
[333708821,1722393037592,-151.0,0.000105,2]
[333708822,1722393037602,-151.0,0.000105,2]
[333708823,1722393037611,-151.0,0.000105,2]
[333708824,1722393037621,-177.649785,0.000105,2]
[333708825,1722393037630,-177.649785,0.000105,2]
[333708826,1722393037640,-151.0,0.000105,2]
[333708827,1722393037649,-177.649785,0.000105,2]
[333708828,1722393037659,-206.162049,0.000105,2]
[333708829,1722393037668,-5824.533365,0.000105,2]
[333708830,1722393037679,-177.649785,0.000105,2]
[333708831,1722393037688,-241.8372712,0.000105,2]
[333708837,1722393038259,-684.22157021,0.000105,2]
[333708838,1722393038270,-1904.64529424,0.000105,2]
[333708839,1722393038281,-2993.82922935,0.000105,2]
[333708840,1722393038290,-177.649785,0.000105,2]
[333708841,1722393038299,-2828.52098565,0.000105,2]
[333708842,1722393038310,-1622.15927746,0.000105,2]
[333708843,1722393038327,-845.39999995,0.000105,2]
[333708844,1722393038338,-528.45310194,0.000105,2]
[333708845,1722393038347,-177.649785,0.000105,2]
[333708846,1722393038357,-490.15,0.000105,2]
[333708847,1722393038366,-151.0,0.000105,2]
[333708848,1722393038375,-490.15,0.000105,2]
[333708849,1722393038385,-151.0,0.000105,2]
[333708850,1722393038394,-490.15,0.000105,2]
[333708851,1722393038403,-151.0,0.000105,2]
[333708852,1722393038412,-177.649785,0.000105,2]
[333708853,1722393038421,-151.0,0.000105,2]
[333708854,1722393038434,-177.649785,0.000105,2]
[333708855,1722393038445,-151.0,0.000105,2]
[333708856,1722393038455,-177.649785,0.000105,2]
[333708857,1722393038464,-11.62637667,0.000105,2]
[333708861,1722393038667,-202.08351036,0.00010415,2]
[333708863,1722393038676,-989.53916747,0.0001047,2]
[333708866,1722393038694,-3547.97188898,0.0001047,2]
[333708868,1722393038705,-311.52452641,0.0001047,2]
[333708870,1722393038716,-2709.39957414,0.0001047,2]
[333708872,1722393038725,-779.51460675,0.0001047,2]
[333708874,1722393038735,-372.94911677,0.0001047,2]
[333708876,1722393038746,-1720.75393469,0.0001047,2]
[333708878,1722393038759,-4685.21749879,0.0001047,2]
[333708880,1722393038768,-139.37362333,0.000105,2]
[333708882,1722393038778,-177.649785,0.000105,2]
[333708884,1722393038787,-177.649785,0.000105,2]
[333708886,1722393038797,-490.15,0.000105,2]
[333708888,1722393038806,-177.649785,0.000105,2]
[333708890,1722393038816,-490.15,0.000105,2]
[333708892,1722393038825,-151.0,0.000105,2]
[333708894,1722393038834,-490.15,0.000105,2]
[333708896,1722393038843,-190.224095,0.000105,2]
[333708898,1722393038852,-5824.533365,0.000105,2]
[333708900,1722393038861,-3352.64063873,0.000105,2]
[333708902,1722393038873,-308.46,0.000105,2]
[333708904,1722393038884,-473.3383626,0.000105,2]
[333708906,1722393038895,-600.5,0.000105,2]
[333709039,1722393040182,-400.0,0.000105,2]
[333709042,1722393040194,-689.59436367,0.000105,2]
[333709044,1722393040203,-5824.533365,0.000105,2]
[333709046,1722393040213,-178.127991,0.000105,2]
[333709047,1722393040223,-178.127991,0.000105,2]
[333709048,1722393040234,-178.127991,0.000105,2]
[333709049,1722393040246,-178.127991,0.000105,2]
[333709050,1722393040256,-178.127991,0.000105,2]
[333709051,1722393040266,-178.127991,0.000105,2]
[333709052,1722393040277,-178.127991,0.000105,2]
[333709053,1722393040287,-178.127991,0.000105,2]
[333709054,1722393040297,-178.127991,0.000105,2]
[333709055,1722393040309,-178.127991,0.000105,2]
[333709056,1722393040319,-178.127991,0.000105,2]
[333709057,1722393040329,-178.127991,0.000105,2]
[333709058,1722393040338,-241.717227,0.000105,2]
[333709059,1722393040348,-241.717227,0.000105,2]
[333709060,1722393040359,-241.717227,0.000105,2]
[333709061,1722393040372,-241.717227,0.000105,2]
[333709063,1722393040383,-241.717227,0.000105,2]
[333709065,1722393040393,-241.717227,0.000105,2]
[333709067,1722393040403,-241.717227,0.000105,2]
[333709069,1722393040412,-241.717227,0.000105,2]
[333709071,1722393040422,-241.717227,0.000105,2]
[333709086,1722393040559,-241.717227,0.000105,2]
[333709088,1722393040569,-241.717227,0.000105,2]
[333709090,1722393040579,-241.717227,0.000105,2]
[333709092,1722393040588,-198.239982,0.000105,2]
[333709094,1722393040598,-198.239982,0.000105,2]
[333709096,1722393040608,-198.239982,0.000105,2]
[333709098,1722393040617,-198.239982,0.000105,2]
[333709100,1722393040626,-198.239982,0.000105,2]
[333709102,1722393040636,-198.239982,0.000105,2]
[333709104,1722393040646,-198.239982,0.000105,2]
[333709106,1722393040655,-198.239982,0.000105,2]
[333709108,1722393040664,-198.239982,0.000105,2]
[333709110,1722393040674,-198.239982,0.000105,2]
[333709112,1722393040686,-198.239982,0.000105,2]
[333709114,1722393040695,-198.239982,0.000105,2]
[333709116,1722393040705,-1141.751201,0.000105,2]
[333709118,1722393040715,-478.889365,0.000105,2]
[333709120,1722393040725,-1141.751201,0.000105,2]
[333709122,1722393040735,-478.889365,0.000105,2]
[333709124,1722393040744,-1141.751201,0.000105,2]
[333709126,1722393040754,-478.889365,0.000105,2]
[333709128,1722393040763,-1141.751201,0.000105,2]
[333709130,1722393040773,-478.889365,0.000105,2]
[333709132,1722393040782,-1141.751201,0.000105,2]
[333709134,1722393040791,-478.889365,0.000105,2]
[333709136,1722393040801,-1141.751201,0.000105,2]
[333709138,1722393040811,-478.889365,0.000105,2]
[333709140,1722393040820,-1141.751201,0.000105,2]
[333709142,1722393040830,-478.889365,0.000105,2]
[333709144,1722393040840,-1141.751201,0.000105,2]
[333709146,1722393040849,-478.889365,0.000105,2]
[333709148,1722393040858,-1141.751201,0.000105,2]
[333709149,1722393040868,-478.889365,0.000105,2]
[333709151,1722393040877,-1141.751201,0.000105,2]
[333709153,1722393040887,-478.889365,0.000105,2]
[333709155,1722393040896,-1141.751201,0.000105,2]
[333709157,1722393040906,-478.889365,0.000105,2]
[333709159,1722393040916,-1141.751201,0.000105,2]
[333709161,1722393040925,-478.889365,0.000105,2]
[333709163,1722393040937,-400.0,0.000105,3]
[333709165,1722393040947,-181.468776,0.000105,2]
[333709167,1722393040957,-181.468776,0.000105,2]
[333709169,1722393040966,-181.468776,0.000105,2]
[333709171,1722393040976,-181.468776,0.000105,2]
[333709173,1722393040986,-181.468776,0.000105,2]
[333709175,1722393040996,-181.468776,0.000105,2]
[333709177,1722393041005,-181.468776,0.000105,2]
[333709179,1722393041015,-181.468776,0.000105,2]
[333709181,1722393041024,-181.468776,0.000105,2]
[333709183,1722393041039,-181.468767,0.000105,2]
[333709185,1722393041049,-3212.938029,0.000105,2]
[333709187,1722393041059,-3212.938029,0.000105,2]
[333709189,1722393041069,-3212.938029,0.000105,2]
[333709191,1722393041078,-1025.378692,0.000105,2]
[333709193,1722393041088,-3212.938029,0.000105,2]
[333709195,1722393041097,-1025.378692,0.000105,2]
[333709197,1722393041106,-3212.938029,0.000105,2]
[333709199,1722393041116,-1025.378692,0.000105,2]
[333709201,1722393041125,-1025.378692,0.000105,2]
[333709204,1722393041135,-1025.378692,0.000105,2]
[333709206,1722393041145,-1025.378692,0.000105,2]
[333709208,1722393041154,-3212.938029,0.000105,2]
[333709210,1722393041163,-3212.938029,0.000105,2]
[333709212,1722393041173,-3212.938029,0.000105,2]
[333709214,1722393041186,-1025.378692,0.000105,2]
[333709216,1722393041197,-3212.938029,0.000105,2]
[333709218,1722393041207,-1025.378692,0.000105,2]
[333709220,1722393041217,-3212.938021,0.000105,2]
[333709222,1722393041226,-1025.378692,0.000105,2]
[333709224,1722393041235,-1025.378692,0.000105,2]
[333709226,1722393041245,-1025.378692,0.000105,2]
[333709228,1722393041254,-1025.378692,0.000105,2]
[333709230,1722393041264,-151.0,0.000105,2]